[Event "*** SCC Grand Prix: Titled Tuesday Blitz"]
[Site "Chess.com"]
[Date "2020.10.06"]
[Round "4"]
[White "Artyom_ChessMate"]
[Black "chorejason"]
[Result "1-0"]
[WhiteElo "2515"]
[BlackElo "2161"]
[TimeControl "180+1"]
[EndTime "10:36:55 PDT"]
[Termination "Artyom_ChessMate won by resignation"]

1. e4 {[%clk 0:03:00.9]} 1... c5 {[%clk 0:02:59.5]} 2. Nc3 {[%clk 0:03:00]} 2...
Nc6 {[%clk 0:02:58.5]} 3. Bb5 {[%clk 0:02:56.8]} 3... Nd4 {[%clk 0:02:57.8]} 4.
Nf3 {[%clk 0:02:56.5]} 4... g6 {[%clk 0:02:56.9]} 5. Nxd4 {[%clk 0:02:55.7]}
5... cxd4 {[%clk 0:02:56.6]} 6. Ne2 {[%clk 0:02:56.1]} 6... Bg7 {[%clk
0:02:56.1]} 7. O-O {[%clk 0:02:55.9]} 7... e6 {[%clk 0:02:55.1]} 8. d3 {[%clk
0:02:56]} 8... Ne7 {[%clk 0:02:55.5]} 9. f4 {[%clk 0:02:54.3]} 9... O-O {[%clk
0:02:55.1]} 10. Ba4 {[%clk 0:02:54.6]} 10... d6 {[%clk 0:02:52.5]} 11. Qe1
{[%clk 0:02:54.2]} 11... e5 {[%clk 0:02:26.2]} 12. Bb3 {[%clk 0:02:52.1]} 12...
d5 {[%clk 0:02:23.2]} 13. f5 {[%clk 0:02:41.8]} 13... gxf5 {[%clk 0:02:18.5]}
14. exf5 {[%clk 0:02:40]} 14... Bxf5 {[%clk 0:02:13.9]} 15. Ng3 {[%clk
0:02:34.5]} 15... Be6 {[%clk 0:02:12.1]} 16. Nh5 {[%clk 0:02:31]} 16... f6
{[%clk 0:01:56.9]} 17. Nxg7 {[%clk 0:02:19.5]} 17... Kxg7 {[%clk 0:01:56.7]} 18.
Qh4 {[%clk 0:02:20.3]} 18... Kh8 {[%clk 0:01:32.9]} 19. Rxf6 {[%clk 0:01:51.7]}
19... Ng6 {[%clk 0:01:32.2]} 20. Rxf8+ {[%clk 0:01:51.5]} 20... Qxf8 {[%clk
0:01:31.4]} 21. Qg3 {[%clk 0:01:50.6]} 21... Qf6 {[%clk 0:01:19.6]} 22. Bg5
{[%clk 0:01:47]} 22... Qg7 {[%clk 0:01:17.9]} 23. Rf1 {[%clk 0:01:47.8]} 23...
Rf8 {[%clk 0:01:14.5]} 24. Rxf8+ {[%clk 0:01:40.7]} 24... Qxf8 {[%clk
0:01:10.5]} 25. h4 {[%clk 0:01:39]} 25... Qf7 {[%clk 0:00:55.8]} 26. h5 {[%clk
0:01:38]} 26... Nf4 {[%clk 0:00:56.1]} 27. Bxf4 {[%clk 0:01:37.6]} 27... Qxf4
{[%clk 0:00:51.9]} 28. Qxf4 {[%clk 0:01:34.4]} 28... exf4 {[%clk 0:00:52]} 29.
Kf2 {[%clk 0:01:31.1]} 29... Bg4 {[%clk 0:00:52]} 30. h6 {[%clk 0:01:30.7]}
30... Be6 {[%clk 0:00:51.1]} 31. Kf3 {[%clk 0:01:30.9]} 31... Kg8 {[%clk
0:00:51.5]} 32. Kxf4 {[%clk 0:01:31]} 32... Kf7 {[%clk 0:00:52.2]} 33. Ke5
{[%clk 0:01:31.2]} 1-0

[Event "*** SCC Grand Prix: Titled Tuesday Blitz"]
[Site "Chess.com"]
[Date "2020.10.06"]
[Round "4"]
[White "Kezin_Roman"]
[Black "GameOverBro"]
[Result "1-0"]
[WhiteElo "2712"]
[BlackElo "2499"]
[TimeControl "180+1"]
[EndTime "10:36:56 PDT"]
[Termination "Kezin_Roman won by resignation"]

1. d4 {[%clk 0:02:59.5]} 1... d6 {[%clk 0:03:00]} 2. Nf3 {[%clk 0:02:58.8]} 2...
Nf6 {[%clk 0:03:00.6]} 3. c4 {[%clk 0:02:59.5]} 3... Nbd7 {[%clk 0:03:01]} 4.
Nc3 {[%clk 0:02:59.6]} 4... e5 {[%clk 0:03:01.6]} 5. Bg5 {[%clk 0:02:59.6]} 5...
Be7 {[%clk 0:03:01.6]} 6. e3 {[%clk 0:02:58.3]} 6... c6 {[%clk 0:03:01.1]} 7.
Be2 {[%clk 0:02:58.7]} 7... O-O {[%clk 0:02:59.5]} 8. O-O {[%clk 0:02:59.4]}
8... a6 {[%clk 0:02:39.7]} 9. Qc2 {[%clk 0:02:57.7]} 9... b5 {[%clk 0:02:37.5]}
10. c5 {[%clk 0:02:46.6]} 10... dxc5 {[%clk 0:02:04.9]} 11. dxe5 {[%clk
0:02:35.2]} 11... Nd5 {[%clk 0:02:03.4]} 12. Bf4 {[%clk 0:02:11.2]} 12... N7b6
{[%clk 0:01:35.6]} 13. Rad1 {[%clk 0:02:07.2]} 13... Qc7 {[%clk 0:01:32.8]} 14.
Bg3 {[%clk 0:02:05.6]} 14... Be6 {[%clk 0:01:31.9]} 15. Ne4 {[%clk 0:02:04.7]}
15... c4 {[%clk 0:01:30.7]} 16. Nf6+ {[%clk 0:01:57.2]} 16... gxf6 {[%clk
0:01:23.7]} 17. exf6 {[%clk 0:01:57]} 17... Bd6 {[%clk 0:01:23.9]} 18. Ng5
{[%clk 0:01:56.1]} 18... Nxf6 {[%clk 0:01:07.6]} 19. Bxd6 {[%clk 0:01:54.5]}
19... Qb7 {[%clk 0:00:57.6]} 20. Be5 {[%clk 0:01:52.1]} 20... h6 {[%clk
0:00:57.2]} 21. Bxf6 {[%clk 0:01:43.3]} 21... hxg5 {[%clk 0:00:56.7]} 22. Qe4
{[%clk 0:01:38.4]} 22... Qc7 {[%clk 0:00:19.9]} 23. f4 {[%clk 0:01:37.7]} 23...
g4 {[%clk 0:00:15.9]} 24. f5 {[%clk 0:01:37.5]} 24... Bd5 {[%clk 0:00:15.3]} 25.
Qxg4+ {[%clk 0:01:37.5]} 1-0

[Event "*** SCC Grand Prix: Titled Tuesday Blitz"]
[Site "Chess.com"]
[Date "2020.10.06"]
[Round "4"]
[White "rududuyk"]
[Black "ViktoriyaTarasova"]
[Result "1-0"]
[WhiteElo "2143"]
[BlackElo "2265"]
[TimeControl "180+1"]
[EndTime "10:36:56 PDT"]
[Termination "rududuyk won by checkmate"]

1. e4 {[%clk 0:03:00.9]} 1... c5 {[%clk 0:02:58.2]} 2. Nc3 {[%clk 0:03:00.7]}
2... d6 {[%clk 0:02:57.2]} 3. f4 {[%clk 0:03:01]} 3... g6 {[%clk 0:02:57.1]} 4.
Nf3 {[%clk 0:03:01.4]} 4... Bg7 {[%clk 0:02:57.5]} 5. Bc4 {[%clk 0:03:01.9]}
5... Nc6 {[%clk 0:02:57.8]} 6. O-O {[%clk 0:03:01.4]} 6... e6 {[%clk 0:02:58.3]}
7. d3 {[%clk 0:03:01.8]} 7... Nge7 {[%clk 0:02:58.6]} 8. Qe1 {[%clk 0:03:01.7]}
8... O-O {[%clk 0:02:58.6]} 9. f5 {[%clk 0:03:00.8]} 9... exf5 {[%clk
0:02:52.5]} 10. Qh4 {[%clk 0:03:00.3]} 10... Qc7 {[%clk 0:01:14.6]} 11. Bh6
{[%clk 0:01:39.3]} 11... fxe4 {[%clk 0:00:28.8]} 12. dxe4 {[%clk 0:01:36]} 12...
Be6 {[%clk 0:00:15.7]} 13. Bxe6 {[%clk 0:01:24.7]} 13... fxe6 {[%clk 0:00:15.5]}
14. Ng5 {[%clk 0:01:24.8]} 14... Bd4+ {[%clk 0:00:12.6]} 15. Kh1 {[%clk
0:01:24.3]} 15... Rxf1+ {[%clk 0:00:13.2]} 16. Rxf1 {[%clk 0:01:24]} 16... Nc8
{[%clk 0:00:05.1]} 17. Rf8# {[%clk 0:01:21.8]} 1-0

[Event "*** SCC Grand Prix: Titled Tuesday Blitz"]
[Site "Chess.com"]
[Date "2020.10.06"]
[Round "4"]
[White "chessmachine14"]
[Black "arminmusovic"]
[Result "0-1"]
[WhiteElo "2281"]
[BlackElo "2527"]
[TimeControl "180+1"]
[EndTime "10:37:04 PDT"]
[Termination "arminmusovic won by resignation"]

1. e4 {[%clk 0:02:53.3]} 1... c6 {[%clk 0:03:00]} 2. d4 {[%clk 0:02:52.5]} 2...
d5 {[%clk 0:03:00.9]} 3. e5 {[%clk 0:02:51.3]} 3... c5 {[%clk 0:03:01.1]} 4.
dxc5 {[%clk 0:02:50.8]} 4... Nc6 {[%clk 0:03:01.1]} 5. Nf3 {[%clk 0:02:47.2]}
5... Bg4 {[%clk 0:03:00.7]} 6. Bb5 {[%clk 0:02:45.8]} 6... e6 {[%clk 0:03:00.6]}
7. h3 {[%clk 0:02:43.7]} 7... Bxf3 {[%clk 0:02:59.6]} 8. Qxf3 {[%clk 0:02:43.9]}
8... Bxc5 {[%clk 0:02:59.8]} 9. Be3 {[%clk 0:02:43.5]} 9... Qb6 {[%clk
0:02:48.1]} 10. Bxc5 {[%clk 0:02:35.7]} 10... Qxb5 {[%clk 0:02:46.1]} 11. Bd6
{[%clk 0:02:20.9]} 11... Qxb2 {[%clk 0:02:38]} 12. Qc3 {[%clk 0:02:19]} 12...
Qc1+ {[%clk 0:02:29.4]} 13. Ke2 {[%clk 0:02:12.1]} 13... Qxh1 {[%clk 0:02:29.4]}
14. Qg3 {[%clk 0:02:05.6]} 14... Nge7 {[%clk 0:02:22.8]} 15. Qxg7 {[%clk
0:01:43.2]} 15... Rg8 {[%clk 0:02:21.6]} 16. Qxh7 {[%clk 0:01:37.8]} 16... Rxg2
{[%clk 0:02:12.7]} 17. Nc3 {[%clk 0:01:23]} 17... Qxa1 {[%clk 0:01:48.3]} 18.
Nb5 {[%clk 0:01:18.4]} 18... Nd4+ {[%clk 0:01:41.1]} 19. Nxd4 {[%clk 0:01:18]}
19... Qxd4 {[%clk 0:01:40.7]} 20. Qh8+ {[%clk 0:01:13.9]} 20... Kd7 {[%clk
0:01:36.8]} 21. Qf6 {[%clk 0:01:13.1]} 21... Rxf2+ {[%clk 0:01:28.7]} 22. Qxf2
{[%clk 0:01:11.3]} 22... Qxf2+ {[%clk 0:01:28.9]} 23. Kxf2 {[%clk 0:01:12.2]}
23... Nf5 {[%clk 0:01:29.4]} 24. Bb4 {[%clk 0:01:08.4]} 24... Rc8 {[%clk
0:01:29.4]} 25. c3 {[%clk 0:01:08.6]} 25... b6 {[%clk 0:01:29.9]} 26. Kf3 {[%clk
0:01:01.5]} 26... a5 {[%clk 0:01:29.5]} 27. Bf8 {[%clk 0:01:00.9]} 27... Rxf8
{[%clk 0:01:29.5]} 28. Kg4 {[%clk 0:00:55.9]} 28... f6 {[%clk 0:01:25.8]} 29. a4
{[%clk 0:00:54.9]} 29... fxe5 {[%clk 0:01:24.6]} 30. h4 {[%clk 0:00:54.7]} 30...
Nxh4 {[%clk 0:01:24.5]} 31. c4 {[%clk 0:00:52.6]} 31... Rf4+ {[%clk 0:01:24.5]}
32. Kh5 {[%clk 0:00:52.5]} 32... Rxc4 {[%clk 0:01:24.6]} 33. Kh6 {[%clk
0:00:52.4]} 33... Rxa4 {[%clk 0:01:25]} 34. Kg7 {[%clk 0:00:52.8]} 34... Rf4
{[%clk 0:01:24.7]} 35. Kg8 {[%clk 0:00:51.8]} 35... Ng2 {[%clk 0:01:25.6]} 36.
Kg7 {[%clk 0:00:51.4]} 36... b5 {[%clk 0:01:26.5]} 37. Kh8 {[%clk 0:00:51.5]}
37... a4 {[%clk 0:01:27.4]} 38. Kh7 {[%clk 0:00:52]} 38... b4 {[%clk 0:01:28.3]}
39. Kg6 {[%clk 0:00:52.5]} 39... d4 {[%clk 0:01:29.2]} 40. Kg5 {[%clk
0:00:52.7]} 40... e4 {[%clk 0:01:30.1]} 41. Kh5 {[%clk 0:00:53.3]} 41... e3
{[%clk 0:01:31]} 42. Kg6 {[%clk 0:00:53.8]} 42... d3 {[%clk 0:01:31.9]} 43. Kg7
{[%clk 0:00:53.8]} 43... b3 {[%clk 0:01:32.8]} 0-1

[Event "*** SCC Grand Prix: Titled Tuesday Blitz"]
[Site "Chess.com"]
[Date "2020.10.06"]
[Round "4"]
[White "CzechmVIII"]
[Black "nochewycandy"]
[Result "0-1"]
[WhiteElo "2149"]
[BlackElo "2494"]
[TimeControl "180+1"]
[EndTime "10:37:10 PDT"]
[Termination "nochewycandy won by resignation"]

1. e4 {[%clk 0:03:00.9]} 1... g6 {[%clk 0:02:56.2]} 2. d4 {[%clk 0:03:00.3]}
2... Bg7 {[%clk 0:02:57.1]} 3. Nc3 {[%clk 0:03:00.4]} 3... d6 {[%clk 0:02:57.5]}
4. f4 {[%clk 0:02:59.5]} 4... a6 {[%clk 0:02:58]} 5. Nf3 {[%clk 0:02:59.2]} 5...
b5 {[%clk 0:02:58.5]} 6. Bd3 {[%clk 0:02:58.6]} 6... Nd7 {[%clk 0:02:59.1]} 7.
e5 {[%clk 0:02:56.9]} 7... c5 {[%clk 0:02:59.5]} 8. e6 {[%clk 0:02:48.9]} 8...
fxe6 {[%clk 0:02:58.8]} 9. Ng5 {[%clk 0:02:35.3]} 9... Nf8 {[%clk 0:02:58.1]}
10. dxc5 {[%clk 0:02:34.4]} 10... Bb7 {[%clk 0:02:48.3]} 11. cxd6 {[%clk
0:02:21.6]} 11... Bxg2 {[%clk 0:02:40.3]} 12. Be4 {[%clk 0:02:04.8]} 12... Bxe4
{[%clk 0:02:36.7]} 13. Ncxe4 {[%clk 0:02:01]} 13... h6 {[%clk 0:02:19.4]} 14.
Nf3 {[%clk 0:01:35.6]} 14... exd6 {[%clk 0:02:12]} 15. Nxd6+ {[%clk 0:01:28.3]}
15... Ke7 {[%clk 0:02:12]} 16. Ne4 {[%clk 0:00:40.3]} 16... Qxd1+ {[%clk
0:02:08.9]} 17. Kxd1 {[%clk 0:00:40.6]} 17... Rc8 {[%clk 0:02:03.2]} 18. c3
{[%clk 0:00:39.6]} 18... Nd7 {[%clk 0:02:00.2]} 19. Be3 {[%clk 0:00:38.3]} 19...
Ngf6 {[%clk 0:01:59.5]} 20. Nxf6 {[%clk 0:00:37.9]} 20... Bxf6 {[%clk
0:01:57.9]} 21. Ke2 {[%clk 0:00:35.3]} 21... Nc5 {[%clk 0:01:50.4]} 22. Bd4
{[%clk 0:00:29.8]} 22... Bxd4 {[%clk 0:01:49.8]} 23. Nxd4 {[%clk 0:00:27.2]}
23... Rhf8 {[%clk 0:01:46.4]} 24. Rhf1 {[%clk 0:00:25.7]} 24... Kf6 {[%clk
0:01:41.9]} 25. Rad1 {[%clk 0:00:24.1]} 25... Rfd8 {[%clk 0:01:36.9]} 26. Nf3
{[%clk 0:00:20.3]} 26... Na4 {[%clk 0:01:34.6]} 27. Rxd8 {[%clk 0:00:19.3]}
27... Rxd8 {[%clk 0:01:34.3]} 28. Ne5 {[%clk 0:00:17.4]} 28... Nxb2 {[%clk
0:01:30.2]} 29. Nc6 {[%clk 0:00:17.3]} 29... Rc8 {[%clk 0:01:29]} 30. Nb4 {[%clk
0:00:16.9]} 30... Rxc3 {[%clk 0:01:28.6]} 31. Rd1 {[%clk 0:00:15.2]} 31... Nxd1
{[%clk 0:01:28.3]} 0-1

[Event "*** SCC Grand Prix: Titled Tuesday Blitz"]
[Site "Chess.com"]
[Date "2020.10.06"]
[Round "4"]
[White "Larina_Marija"]
[Black "WIDBIFS"]
[Result "1/2-1/2"]
[WhiteElo "2220"]
[BlackElo "2737"]
[TimeControl "180+1"]
[EndTime "10:37:19 PDT"]
[Termination "Game drawn by repetition"]

1. e4 {[%clk 0:03:00]} 1... g6 {[%clk 0:02:58.2]} 2. d4 {[%clk 0:02:59.2]} 2...
Bg7 {[%clk 0:02:58.2]} 3. Nc3 {[%clk 0:02:58.6]} 3... c6 {[%clk 0:02:57.8]} 4.
a4 {[%clk 0:02:58.3]} 4... d5 {[%clk 0:02:58.2]} 5. Nf3 {[%clk 0:02:54.2]} 5...
Bg4 {[%clk 0:02:53.8]} 6. Be3 {[%clk 0:02:52.2]} 6... Nf6 {[%clk 0:02:51.8]} 7.
e5 {[%clk 0:02:51.6]} 7... Ne4 {[%clk 0:02:52.2]} 8. Nxe4 {[%clk 0:02:46.2]}
8... dxe4 {[%clk 0:02:53.1]} 9. h3 {[%clk 0:02:46.9]} 9... Bxf3 {[%clk
0:02:47.5]} 10. gxf3 {[%clk 0:02:46]} 10... exf3 {[%clk 0:02:47]} 11. Qxf3
{[%clk 0:02:46.9]} 11... e6 {[%clk 0:02:36]} 12. h4 {[%clk 0:02:43.8]} 12... h5
{[%clk 0:02:35.3]} 13. Bg2 {[%clk 0:02:39.6]} 13... Nd7 {[%clk 0:02:34.8]} 14.
c3 {[%clk 0:02:31.7]} 14... Nb6 {[%clk 0:02:21.2]} 15. a5 {[%clk 0:02:30.3]}
15... Nd5 {[%clk 0:02:18.3]} 16. Bg5 {[%clk 0:02:28.1]} 16... Qd7 {[%clk
0:02:09.3]} 17. O-O {[%clk 0:02:24.1]} 17... O-O {[%clk 0:02:07.2]} 18. Rfe1
{[%clk 0:02:12.6]} 18... Rfc8 {[%clk 0:02:06.8]} 19. Qg3 {[%clk 0:02:01.1]}
19... b5 {[%clk 0:02:03.3]} 20. Bf3 {[%clk 0:01:54]} 20... Kh7 {[%clk 0:01:57]}
21. Kh2 {[%clk 0:01:53.8]} 21... Ne7 {[%clk 0:01:38]} 22. Bxe7 {[%clk
0:01:45.9]} 22... Qxe7 {[%clk 0:01:38.9]} 23. Be4 {[%clk 0:01:45.3]} 23... Rab8
{[%clk 0:01:27.9]} 24. Rg1 {[%clk 0:01:44.9]} 24... Kh8 {[%clk 0:01:14.7]} 25.
b4 {[%clk 0:01:43.3]} 25... Rc7 {[%clk 0:01:01]} 26. f4 {[%clk 0:01:42]} 26...
Bh6 {[%clk 0:00:59.1]} 27. Kh3 {[%clk 0:01:38.9]} 27... Rg8 {[%clk 0:00:58.1]}
28. Raf1 {[%clk 0:01:37.6]} 28... Qd7 {[%clk 0:00:56.4]} 29. Qf3 {[%clk
0:01:32.9]} 29... Rg7 {[%clk 0:00:50.8]} 30. Rg2 {[%clk 0:01:31.4]} 30... Qe8
{[%clk 0:00:47.2]} 31. Rfg1 {[%clk 0:01:30.9]} 31... Rc8 {[%clk 0:00:34.7]} 32.
Rg3 {[%clk 0:01:30.7]} 32... Rc7 {[%clk 0:00:34.9]} 33. Qg2 {[%clk 0:01:25.6]}
33... Rc8 {[%clk 0:00:34.7]} 34. Qf3 {[%clk 0:01:25.1]} 34... Rc7 {[%clk
0:00:34.9]} 35. R3g2 {[%clk 0:01:24.1]} 35... Rc8 {[%clk 0:00:35.2]} 36. Rg3
{[%clk 0:01:23.7]} 1/2-1/2

[Event "*** SCC Grand Prix: Titled Tuesday Blitz"]
[Site "Chess.com"]
[Date "2020.10.06"]
[Round "4"]
[White "vladimirdamjanovic"]
[Black "BocharovD"]
[Result "0-1"]
[WhiteElo "2548"]
[BlackElo "2805"]
[TimeControl "180+1"]
[EndTime "10:37:20 PDT"]
[Termination "BocharovD won by resignation"]

1. e4 {[%clk 0:03:00.9]} 1... c5 {[%clk 0:03:00]} 2. Nf3 {[%clk 0:03:00.5]} 2...
d6 {[%clk 0:03:00.6]} 3. d4 {[%clk 0:03:00.9]} 3... cxd4 {[%clk 0:03:01.5]} 4.
Nxd4 {[%clk 0:03:01.4]} 4... Nf6 {[%clk 0:03:02.1]} 5. Nc3 {[%clk 0:03:02]} 5...
a6 {[%clk 0:03:01.9]} 6. Qf3 {[%clk 0:03:02]} 6... Nbd7 {[%clk 0:02:55.2]} 7. h3
{[%clk 0:02:57.3]} 7... Qc7 {[%clk 0:02:51.6]} 8. g4 {[%clk 0:02:56.3]} 8... h6
{[%clk 0:02:51.3]} 9. Be3 {[%clk 0:02:52]} 9... b5 {[%clk 0:02:49.5]} 10. a3
{[%clk 0:02:42]} 10... Bb7 {[%clk 0:02:48.2]} 11. O-O-O {[%clk 0:02:36]} 11...
Rc8 {[%clk 0:02:47.9]} 12. Bd3 {[%clk 0:02:21.7]} 12... Ne5 {[%clk 0:02:39.2]}
13. Qg3 {[%clk 0:02:16.5]} 13... Nxd3+ {[%clk 0:02:38.5]} 14. cxd3 {[%clk
0:02:10.7]} 14... e5 {[%clk 0:02:38.2]} 15. Ne2 {[%clk 0:01:57.2]} 15... d5
{[%clk 0:02:37.7]} 16. exd5 {[%clk 0:01:54.4]} 16... Nxd5 {[%clk 0:02:36.9]} 17.
Kb1 {[%clk 0:01:51.7]} 17... Nxe3 {[%clk 0:02:29.7]} 18. fxe3 {[%clk 0:01:45.7]}
18... b4 {[%clk 0:02:29.2]} 19. axb4 {[%clk 0:01:36.8]} 19... Bxh1 {[%clk
0:02:27.7]} 20. Rxh1 {[%clk 0:01:37.7]} 20... Bxb4 {[%clk 0:02:26.7]} 21. g5
{[%clk 0:01:30.8]} 21... hxg5 {[%clk 0:02:01.8]} 22. Qxg5 {[%clk 0:01:27.5]}
22... f6 {[%clk 0:01:59.8]} 23. Qg6+ {[%clk 0:01:22.6]} 23... Qf7 {[%clk
0:01:54.8]} 24. Qg4 {[%clk 0:01:22.1]} 24... Qb7 {[%clk 0:01:55]} 25. Qg6+
{[%clk 0:01:21.2]} 25... Kf8 {[%clk 0:01:54.5]} 26. Rc1 {[%clk 0:01:10.9]} 26...
Bxc3 {[%clk 0:01:51.4]} 27. Nxc3 {[%clk 0:01:10.2]} 27... Rxh3 {[%clk
0:01:50.4]} 28. Qf5 {[%clk 0:00:45.5]} 28... Rh2 {[%clk 0:01:46.3]} 29. Rc2
{[%clk 0:00:39.6]} 29... Rxc2 {[%clk 0:01:42.9]} 30. Kxc2 {[%clk 0:00:40.5]}
30... Rb8 {[%clk 0:01:43.1]} 31. Nd1 {[%clk 0:00:39.1]} 31... Qc8+ {[%clk
0:01:41.6]} 32. Qxc8+ {[%clk 0:00:37.9]} 32... Rxc8+ {[%clk 0:01:42.5]} 33. Kd2
{[%clk 0:00:37.4]} 33... Ke7 {[%clk 0:01:41]} 34. Nf2 {[%clk 0:00:35.9]} 34...
Ke6 {[%clk 0:01:41]} 35. e4 {[%clk 0:00:36.2]} 35... f5 {[%clk 0:01:39.1]} 36.
exf5+ {[%clk 0:00:35.7]} 36... Kxf5 {[%clk 0:01:38.7]} 37. Ne4 {[%clk
0:00:36.6]} 37... Rb8 {[%clk 0:01:33.3]} 38. Kc3 {[%clk 0:00:36]} 38... g5
{[%clk 0:01:32]} 39. b4 {[%clk 0:00:35.1]} 39... g4 {[%clk 0:01:30.9]} 40. Kc4
{[%clk 0:00:35.6]} 40... Kf4 {[%clk 0:01:30.5]} 0-1

[Event "*** SCC Grand Prix: Titled Tuesday Blitz"]
[Site "Chess.com"]
[Date "2020.10.06"]
[Round "4"]
[White "DariaVoit"]
[Black "sokidze"]
[Result "0-1"]
[WhiteElo "2498"]
[BlackElo "2709"]
[TimeControl "180+1"]
[EndTime "10:37:21 PDT"]
[Termination "sokidze won by resignation"]

1. f4 {[%clk 0:03:00.9]} 1... c5 {[%clk 0:02:57]} 2. Nf3 {[%clk 0:02:59.7]} 2...
Nc6 {[%clk 0:02:57.4]} 3. g3 {[%clk 0:02:59.9]} 3... g6 {[%clk 0:02:57.2]} 4.
Bg2 {[%clk 0:03:00.4]} 4... Bg7 {[%clk 0:02:57.5]} 5. O-O {[%clk 0:02:58.7]}
5... d6 {[%clk 0:02:52.8]} 6. c4 {[%clk 0:02:58.1]} 6... e5 {[%clk 0:02:52.4]}
7. Nc3 {[%clk 0:02:56.2]} 7... exf4 {[%clk 0:02:46.9]} 8. gxf4 {[%clk
0:02:54.7]} 8... Nge7 {[%clk 0:02:47.8]} 9. e4 {[%clk 0:02:46.8]} 9... O-O
{[%clk 0:02:46.1]} 10. d3 {[%clk 0:02:47.1]} 10... Bg4 {[%clk 0:02:43.5]} 11.
Be3 {[%clk 0:02:45]} 11... Nd4 {[%clk 0:02:23.2]} 12. Qd2 {[%clk 0:02:32.3]}
12... Nec6 {[%clk 0:02:15.4]} 13. Nd5 {[%clk 0:02:22.7]} 13... Bxf3 {[%clk
0:02:00.7]} 14. Bxf3 {[%clk 0:02:23.6]} 14... Nxf3+ {[%clk 0:01:56.4]} 15. Rxf3
{[%clk 0:02:24.5]} 15... Nd4 {[%clk 0:01:56.9]} 16. Rh3 {[%clk 0:02:17.3]} 16...
Qd7 {[%clk 0:01:50.3]} 17. Qg2 {[%clk 0:01:59.6]} 17... f5 {[%clk 0:01:45.5]}
18. Rf1 {[%clk 0:01:49]} 18... Rae8 {[%clk 0:01:43.9]} 19. Kh1 {[%clk
0:01:45.2]} 19... Rf7 {[%clk 0:01:20.8]} 20. b3 {[%clk 0:01:35.6]} 20... Qe6
{[%clk 0:01:13.7]} 21. Re1 {[%clk 0:01:17]} 21... fxe4 {[%clk 0:00:42.7]} 22.
Bxd4 {[%clk 0:01:14.5]} 22... Bxd4 {[%clk 0:00:42.9]} 23. dxe4 {[%clk
0:00:52.5]} 23... Bg7 {[%clk 0:00:39.7]} 24. Qg5 {[%clk 0:00:48]} 24... Qxh3
{[%clk 0:00:35.8]} 0-1

[Event "*** SCC Grand Prix: Titled Tuesday Blitz"]
[Site "Chess.com"]
[Date "2020.10.06"]
[Round "4"]
[White "DishonorOnYourCow"]
[Black "Legendinunknown"]
[Result "0-1"]
[WhiteElo "2412"]
[BlackElo "2644"]
[TimeControl "180+1"]
[EndTime "10:37:26 PDT"]
[Termination "Legendinunknown won by checkmate"]

1. d4 {[%clk 0:02:58.8]} 1... d5 {[%clk 0:02:59.5]} 2. c4 {[%clk 0:02:58.3]}
2... c6 {[%clk 0:02:59.5]} 3. Nf3 {[%clk 0:02:57.7]} 3... Nf6 {[%clk 0:02:59.8]}
4. e3 {[%clk 0:02:56.9]} 4... e6 {[%clk 0:02:59.4]} 5. b3 {[%clk 0:02:53]} 5...
Nbd7 {[%clk 0:02:58.4]} 6. Bb2 {[%clk 0:02:51.6]} 6... Bb4+ {[%clk 0:02:57.6]}
7. Nbd2 {[%clk 0:02:50.8]} 7... Ne4 {[%clk 0:02:57.3]} 8. Bd3 {[%clk 0:02:49.1]}
8... f5 {[%clk 0:02:56.9]} 9. Qc2 {[%clk 0:02:40.2]} 9... O-O {[%clk 0:02:46.8]}
10. O-O {[%clk 0:02:38.7]} 10... Qf6 {[%clk 0:02:43.6]} 11. a3 {[%clk
0:02:34.7]} 11... Bd6 {[%clk 0:02:42.4]} 12. h3 {[%clk 0:02:23.3]} 12... Qh6
{[%clk 0:02:33.3]} 13. Ne5 {[%clk 0:02:18.6]} 13... Ndf6 {[%clk 0:02:21.8]} 14.
Nxe4 {[%clk 0:02:11.1]} 14... Nxe4 {[%clk 0:02:09.1]} 15. f4 {[%clk 0:01:55.6]}
15... Bxe5 {[%clk 0:02:03.5]} 16. dxe5 {[%clk 0:01:54.8]} 16... Bd7 {[%clk
0:02:03.5]} 17. Bxe4 {[%clk 0:01:54.3]} 17... fxe4 {[%clk 0:02:01.9]} 18. b4
{[%clk 0:01:51.5]} 18... Rf7 {[%clk 0:01:56.2]} 19. Rad1 {[%clk 0:01:45.6]}
19... Raf8 {[%clk 0:01:54.7]} 20. b5 {[%clk 0:01:43.3]} 20... g5 {[%clk
0:01:39.9]} 21. cxd5 {[%clk 0:01:34]} 21... cxd5 {[%clk 0:01:37.8]} 22. a4
{[%clk 0:01:09]} 22... gxf4 {[%clk 0:01:32.3]} 23. Ba3 {[%clk 0:01:08.4]} 23...
Rc8 {[%clk 0:01:24.7]} 24. Qe2 {[%clk 0:01:04.3]} 24... f3 {[%clk 0:01:06.1]}
25. gxf3 {[%clk 0:01:03.6]} 25... Qxh3 {[%clk 0:01:03.2]} 26. Qh2 {[%clk
0:00:59.6]} 26... Rg7+ {[%clk 0:00:55.7]} 27. Kh1 {[%clk 0:00:59.3]} 27... Qxh2+
{[%clk 0:00:55.2]} 28. Kxh2 {[%clk 0:01:00.2]} 28... Rc2+ {[%clk 0:00:54]} 29.
Kh1 {[%clk 0:01:00.4]} 29... Rc3 {[%clk 0:00:47.9]} 30. fxe4 {[%clk 0:00:58]}
30... Rxa3 {[%clk 0:00:47.1]} 31. exd5 {[%clk 0:00:50.9]} 31... Rxe3 {[%clk
0:00:46.2]} 32. dxe6 {[%clk 0:00:47.9]} 32... Rh3# {[%clk 0:00:45.9]} 0-1